Cogmind - Beta 17 @@@ ROGUE MODE // 2026.06.30 @ 20:14:16 Player: Conwew Result: Self-destructed Performance ------------- Evolutions (2) 1000 Regions Visited (3) 600 Robots Destroyed (32) 160 Value Destroyed (819) 819 Prototype IDs (0) 0 Alien Tech Used (0) 0 Bonus (0) 0 TOTAL SCORE: 2579 Bonus ------- None Cogmind --------- Core Integrity 494/550 Matter 300/300 Energy 265/265 System Corruption 0% Temperature Cool (0) Movement Treading (160) Location -8/Materials Parts ------- > --- POWER (2) -------- Improved Ion Engine > --- PROPULSION (3) --- Improved Treads > --- UTILITY (3) ------ Improved Heat Sink > --- WEAPON (3) ------- Small Laser Heavy Assault Rifle > --- INVENTORY (5) ---- Weight Redist. System Peak State ------------ > --- POWER ------------ Improved Ion Engine > --- PROPULSION ------- Light Treads Improved Treads Improved Aluminum Leg > --- UTILITY ---------- Improved Heat Sink Light Armor Plating > --- WEAPON ----------- Small Laser Spread Laser Heavy Assault Rifle > --- INVENTORY -------- Weight Redist. System [Rating: 16] Favorites ----------- Power Light Nuclear Core Engine Light Ion Engine Power Core Light Nuclear Core Propulsion Light Treads Treads Light Treads Leg Improved Aluminum Leg Wheel Wheel Utility Improved Heat Sink Device Improved Heat Sink Protection Light Armor Plating Weapon Grenade Launcher Energy Gun Small Laser Ballistic Gun Assault Rifle Launcher Grenade Launcher Build | -11 -10 -9 -8 ------- Run | Yrd Mat Mat Mat Slots Evolved 4 | . . 2 2 Power 1 | . . . 1 Propulsion 1 | . . 1 . Utility 1 | . . 1 . Weapon 1 | . . . 1 Parts Attached 21 | 5 5 6 5 Power 4 | 1 1 1 1 Engine 3 | 1 . 1 1 Core 1 | . 1 . . Reactor . | . . . . Propulsion 7 | 2 1 3 1 Treads 3 | . 1 1 1 Leg 2 | . . 2 . Wheel 2 | 2 . . . Hover . | . . . . Flight . | . . . . Utility 4 | . 2 1 1 Device 2 | . 1 1 . Storage . | . . . . Processor . | . . . . Hackware . | . . . . Protection 2 | . 1 . 1 Artifact . | . . . . Weapon 6 | 2 1 1 2 Energy Gun 2 | . . 1 1 Energy Cannon . | . . . . Ballistic Gun 3 | 2 . . 1 Ballistic Cannon . | . . . . Launcher 1 | . 1 . . Special Weapon . | . . . . Impact Weapon . | . . . . Slashing Weapon . | . . . . Piercing Weapon . | . . . . Special Melee Weapon . | . . . . Unidentified Prototypes . | . . . . Parts Lost 13 | . 5 2 6 Power 2 | . 1 1 . Propulsion 4 | . 2 . 2 Utility 3 | . . 1 2 Weapon 4 | . 2 . 2 Highest Loss Streak 4 | . 3 1 4 To Critical Strikes . | . . . . Average Backups . | . . . 1 Power . | . . . . Propulsion . | . . . . Utility . | . . . 1 Weapon . | . . . . Tool/Special . | . . . . Unused Backups 1 | . . . 1 Power . | . . . . Propulsion . | . . . . Utility 1 | . . . 1 Weapon . | . . . . Tool/Special . | . . . . Average Slot Usage (%) 67 | . 59 70 71 Engine 4 | . 2 4 5 Core 3 | . 8 2 . Treads 14 | . 9 14 21 Leg 7 | . . 15 3 Wheel 2 | . 8 . . Device 10 | . 7 12 12 Protection 6 | . 2 10 4 Energy Gun 3 | . . 1 16 Ballistic Gun 4 | . 10 . 5 Launcher 8 | . 8 10 2 Peak Build Rating 16 | 5 9 12 16 Average Rating 9 | 3 6 9 13 On Entrance 6 | . 5 9 11 Avg Prop Armor Cover (%) 7 | . 6 7 5 Naked Turns . | . . . . Heaviest Build 18 | 8 12 12 18 Greatest Support 63 | 26 26 43 63 Greatest Overweight (x) 1 | 1 . . . Average Overweight (x) . | . . . . Largest Inventory Capacity 5 | 5 5 5 5 Average Capacity 5 | 5 5 5 5 Most Carried 1 | . 1 1 1 Average Carried . | . . . 1 Final Capacity 5 | 5 5 5 5 Final Carried 1 | . . 1 1 Class Distribution -------------------- 85% | Mutant 10% | Scavenger-Tank Dominant Class ---------------- Mutant | -10/Materials Mutant | -9/Materials Scavenger-Tank | -8/Materials Resources | -11 -10 -9 -8 ----------- Run | Yrd Mat Mat Mat Matter Collected 815 | 142 210 228 235 Remotely . | . . . . Salvage Created 836 | . 323 306 207 Parts 56 | . 20 17 19 Haulers Intercepted . | . . . . Recyclers Shooed 3 | . 2 . 1 Parts Field Recycled . | . . . . Retrieved Matter . | . . . . Parts Self-Destructed . | . . . . Prevented . | . . . . Parts Restored . | . . . . Kills | -11 -10 -9 -8 ------- Run | Yrd Mat Mat Mat Combat Hostiles Destroyed 27 | . 9 11 7 Guns 14 | . 7 . 7 AOE 13 | . 2 11 . Classes Destroyed 7 | . 2 5 . Worker 2 | . . 2 . Recycler 1 | . . 1 . Watcher 2 | . . 1 1 Swarmer 11 | . 2 5 4 Grunt 10 | . 7 2 1 Brawler 1 | . . 1 . Sentry 5 | . . 3 2 Best Kill Streak 5 | . 4 4 5 Combat Bots Only 5 | . 4 3 5 Max Kills in Single Turn 3 | . 1 3 2 Gunslinging 1 | . . . 1 Exploded 3 | . 1 3 . Melee . | . . . . Uniques/NPCs Destroyed . | . . . . Combat | -11 -10 -9 -8 -------- Run | Yrd Mat Mat Mat Hostile Shots Fired 172 | . 66 48 58 Missed 37 | . 18 13 6 Hits 135 | . 48 35 52 Projectile 135 | . 48 35 52 Critical Strikes 3 | . 2 . 1 Damage Taken 1614 | . 566 486 562 Core 297 | . 195 46 56 Absorbed by Shields . | . . . . Regen/Repaired (Parts) 102 | . . 102 . Core Remaining (%) 70 | 100 22 88 . Volleys Fired 86 | . 37 30 19 Largest 3 | . 2 2 3 Hottest 128 | . 40 70 128 Shots Fired 151 | . 67 33 51 Gun 124 | . 65 8 51 Cannon . | . . . . Launcher 27 | . 2 25 . Special . | . . . . Kinetic 79 | . 65 . 14 Thermal 45 | . . 8 37 Explosive 27 | . 2 25 . Electromagnetic . | . . . . Robot Hit Streak 12 | . 12 5 6 Robot Miss Streak 10 | . 2 1 10 Penetration Max . | . . . . Secondary Targets 3 | . 2 . 1 Max Gunslinging Chain 1 | . 1 . 1 Shots Hit Robots 103 | . 48 23 32 Core Hits 77 | . 19 28 30 Critical Kills . | . . . . Critical Parts Destroyed . | . . . . Critical Strikes . | . . . . Melee Attacks . | . . . . Impact . | . . . . Slashing . | . . . . Piercing . | . . . . Sneak Attacks . | . . . . Combat Hostiles . | . . . . Follow-up Attacks . | . . . . Damage Inflicted 1961 | . 582 944 435 Guns 963 | . 496 32 435 Cannons . | . . . . Explosions 998 | . 86 912 . Melee . | . . . . Ramming . | . . . . Kinetic 601 | . 496 . 105 Thermal 362 | . . 32 330 Explosive 998 | . 86 912 . Electromagnetic . | . . . . Impact . | . . . . Slashing . | . . . . Piercing . | . . . . Highest Corruption . | . . . . Average Corruption . | . . . . Corruption Purged . | . . . . Corruption Blocked . | . . . . Overload Shots . | . . . . Overflow Damage 36 | . 26 10 . Projectiles . | . . . . Explosions 36 | . 26 10 . Melee . | . . . . Knockbacks . | . . . . Impact . | . . . . Kinetic . | . . . . Secondary . | . . . . Self-Inflicted Damage 81 | . . 81 . Shots 4 | . . 4 . Rammed 1 | . . 1 . Targets Rammed 1 | . . 1 . Kicked . | . . . . Crushed . | . . . . Highest Temperature 63 | . 31 . 63 Average Temperature 20 | . 7 . 26 Received Heat Transfer 480 | . 291 72 117 Siege Activations . | . . . . Martial Activations . | . . . . Shielding Activations . | . . . . Robots Disrupted . | . . . . Combat Hostiles . | . . . . Robots Corrupted . | . . . . Combat Hostiles . | . . . . Parts Fried . | . . . . Impact Corruptions . | . . . . Robots Melted . | . . . . Combat Hostiles . | . . . . Parts Melted . | . . . . Heat Transferred 640 | . . 75 565 Parts Sabotaged . | . . . . Parts Stolen . | . . . . Parts Stripped . | . . . . Power Chain Reactions . | . . . . Alert | -11 -10 -9 -8 ------- Run | Yrd Mat Mat Mat Maximum Alert Level . | . . . . Low Security (%) 100 | 100 100 100 100 Level 1 . | . . . . Level 2 . | . . . . Level 3 . | . . . . Level 4 . | . . . . Level 5 . | . . . . High Security . | . . . . Max Security . | . . . . Peak Influence 188 | . 135 188 80 Initial 74 | . . 21 74 Average 80 | . 66 115 30 Influence Increases 947 | . 291 478 178 Destroy 0b10 Robot/C 540 | . 180 220 140 Destroy 0b10 Robot/NC 25 | . . 20 5 Destroy Leader 144 | . 40 72 32 Successful Hack 19 | . 9 10 . Disable Machine 30 | . . 30 . Destroy Structure 129 | . 17 111 1 Lose Combat Pursuer 60 | . 45 15 . Influence Decreases 887 | . 239 353 295 Entered New Map 134 | . . 31 103 Time Decay 623 | . 189 302 132 Lost Part 130 | . 50 20 60 Squads Dispatched 4 | . 1 2 1 Investigation . | . . . . Extermination . | . . . . Reinforcement 4 | . 1 2 1 Assault . | . . . . Garrison . | . . . . Intercept . | . . . . Searches Triggered . | . . . . Construction Impeded . | . . . . Haulers Reinforced . | . . . . Active Scanning Responses . | . . . . Cargo Convoy Interrupts . | . . . . Stealth | -11 -10 -9 -8 --------- Run | Yrd Mat Mat Mat Distress Signals 3 | . 1 . 2 Communications Jammed . | . . . . Distress Signals . | . . . . Times Spotted 40 | . 14 13 13 Peak Tracking Total 7 | . 5 3 7 Tactical Retreats 3 | . 2 1 . Traps | -11 -10 -9 -8 ------- Run | Yrd Mat Mat Mat Traps Triggered . | . . . . Indirectly . | . . . . Trap Hack Attempts . | . . . . Triggered . | . . . . Disarmed . | . . . . Reprogrammed . | . . . . Reused . | . . . . Traps Extracted . | . . . . Installed . | . . . . Triggered . | . . . . Machines | -11 -10 -9 -8 ---------- Run | Yrd Mat Mat Mat Machines Disabled 2 | . . 2 . Max in Single Turn 2 | . . 2 . Machines Repaired . | . . . . Machines Dismantled . | . . . . Machines Sabotaged . | . . . . Overloaded Fab Kills . | . . . . Hacking | -11 -10 -9 -8 --------- Run | Yrd Mat Mat Mat Machines Accessed 9 | . 3 5 1 Terminals 7 | . 3 3 1 Fabricators . | . . . . Repair Stations 2 | . . 2 . Recycling Units . | . . . . Scanalyzers . | . . . . Garrison Access . | . . . . Total Hacks 19 | . 6 10 3 Successful 11 | . 4 7 . Failed 8 | . 2 3 3 Catastrophic . | . . . . Database Lockouts . | . . . . Manual 13 | . 5 5 3 Terminals 14 | . 6 5 3 Fabricators . | . . . . Repair Stations 5 | . . 5 . Recycling Units . | . . . . Scanalyzers . | . . . . Garrison Access . | . . . . Terminal Hacks 1 | . 1 . . Locate Traps 1 | . 1 . . Fabricator Hacks . | . . . . Repair Station Hacks 4 | . . 4 . Scan Component 2 | . . 2 . Repair 2 | . . 2 . Recycling Unit Hacks . | . . . . Scanalyzer . | . . . . Garrison Access Hacks . | . . . . Unauthorized Hacks 6 | . 3 3 . Terminals 6 | . 3 3 . Botnet 6 | . 3 3 . Fabricators . | . . . . Repair Stations . | . . . . Recycling Units . | . . . . Scanalyzers . | . . . . Garrison Access . | . . . . Data Cores Recovered . | . . . . Used . | . . . . Hacking Detections 3 | . . 2 1 Full Trace Events . | . . . . Feedback Events . | . . . . Feedback Blocked . | . . . . Robot Schematics Acquired . | . . . . Robots Built . | . . . . Authchips . | . . . . Time . | . . . . Total Robot Build Rating . | . . . . Part Schematics Acquired . | . . . . Parts Built . | . . . . Authchips . | . . . . Time . | . . . . Total Part Build Rating . | . . . . Part Studies Acquired . | . . . . Parts Repaired 2 | . . 2 . Time 52 | . . 52 . Parts Recycled . | . . . . Recycled Matter . | . . . . Retrieved Matter . | . . . . Retrieved Components . | . . . . Parts Scanalyzed . | . . . . Part Schematics Acquired . | . . . . Parts Damaged . | . . . . Bothacking | -11 -10 -9 -8 ------------ Run | Yrd Mat Mat Mat Used RIF Installer . | . . . . Robots Hacked . | . . . . Non-combat . | . . . . Combat . | . . . . Robot Hacks Applied . | . . . . Relay Couplers Released . | . . . . Fabnet Peak Effective % . | . . . . Robots Rewired . | . . . . Allies Hacked . | . . . . Hacks Repelled . | . . . . Allies | -11 -10 -9 -8 -------- Run | Yrd Mat Mat Mat Total Allies . | . . . . Largest Group . | . . . . Highest-Rated Group . | . . . . Highest-Rated Ally . | . . . . Total Orders . | . . . . Ally Attacks . | . . . . Total Damage . | . . . . Kills . | . . . . Allies Corrupted . | . . . . Allies Melted . | . . . . Intel | -11 -10 -9 -8 ------- Run | Yrd Mat Mat Mat Active Infowar (turns) . | . . . . Robot Analysis Total . | . . . . Derelict Logs Recovered . | . . . . Drone Launches . | . . . . Drone Recoveries . | . . . . Exploration | -11 -10 -9 -8 ------------- Run | Yrd Mat Mat Mat Turns Passed 1439 | 40 453 662 284 Spaces Moved 791 | 38 243 385 125 Core 8 | 8 . . . Treads 443 | . 172 146 125 Legs 239 | . . 239 . Wheels 101 | 30 71 . . Hover . | . . . . Flight . | . . . . Fastest Speed 50 | 50 80 120 160 Average Speed 138 | 87 139 135 160 Slowest Speed 160 | 100 160 160 160 Overloaded Moves . | . . . . Propulsion Burnouts . | . . . . Robots Hopped . | . . . . Potential Cave-ins . | . . . . Cave-ins Triggered . | . . . . Exploration Rate (%) 27 | 3 52 38 18 Regions Visited 3 Branch Regions . Pre-discovered Areas . | . . . . Known Exits Taken . | . . . . Unknown Exits Taken 3 | 1 1 1 . Scrap Searched . | . . . . Spaces Dug 8 | . 8 . . Terrain Destroyed 142 | . 15 127 . Melee . | . . . . Projectile . | . . . . AOE 142 | . 15 127 . Terrain Rammed . | . . . . Walls Destroyed . | . . . . Machines Disabled . | . . . . Actions | -11 -10 -9 -8 --------- Run | Yrd Mat Mat Mat Total 993 | 42 295 490 166 Wait 89 | . 10 63 16 Move 788 | 37 242 384 125 Hop . | . . . . Pick Up 3 | . 1 2 . Fast Attach 21 | 5 4 7 5 Attach 1 | . 1 . . Detach . | . . . . Swap 1 | . . 1 . Drop 3 | . . 2 1 Fire 86 | . 37 30 19 Melee . | . . . . Ram . | . . . . Kick . | . . . . Crush 1 | . . 1 . Escape Stasis . | . . . . Rewire . | . . . . Trap . | . . . . Miscellaneous . | . . . . Route ------- -11/Scrapyard -10/Materials (discovered 3 exits: *Mat x2 / [*Min]) -9/Materials -8/Materials History --------- Turn | Location | Event 6 | -11/Scrapyard | Discovered new exit (range 16) 41 | -11/Scrapyard | Entered Materials 82 | -10/Materials | Discovered new exit (range 7) 187 | -10/Materials | Core integrity fell below 50% 240 | -10/Materials | Discovered new exit (range 13) 249 | -10/Materials | Lost 3 parts (1n2w) 313 | -10/Materials | Build established: Mutant 410 | -10/Materials | Discovered new exit (range 9) 494 | -10/Materials | Entered another Materials area 494 | -9/Materials | Evolved 2 slots: Propulsion x1, Utility x1 661 | -9/Materials | Repaired Grenade Launcher 795 | -9/Materials | Repaired Lgt. Armor Plating 992 | -9/Materials | Discovered new exit (range 4) 1156 | -9/Materials | Entered another Materials area 1156 | -8/Materials | Evolved 2 slots: Power x1, Weapon x1 1440 | -8/Materials | Self-destructed Last Messages --------------- Lgt. Armor Plating destroyed. K-01 Serf collects debris. S-10 Pest destroyed. Switching to secondary target: S-10 Pest. S-10 Pest destroyed. K-01 Serf collects debris. R-06 Scavenger collects Flight Unit. S-10 Pest destroyed. K-01 Serf collects debris. R-06 Scavenger collects Flight Unit. Acquired 9 matter. R-06 Scavenger collects Lgt. Ion Engine. R-06 Scavenger collects Lgt. Assault Rifle. K-01 Serf collects debris. R-06 Scavenger collects Lgt. Assault Rifle. Penetrated by Slug. K-01 Serf collects debris. Penetrated by Slug. Spread Laser destroyed. K-01 Serf collects debris. Map ----- +----------------------------------------------------+ | ?????????????????????????????????????????????????? | | ?????????????????????????????????????????????????? | | ?????????????????????????????????????????????????? | | ?????????????????????????????????????????????????? | | ?????????????????????????????????????????????????? | | ?????????????????????????????????????????????????? | | ?????????????????????????????????????????????????? | | ?????????????????????????????????????????????????? | | ?????????????????????????????????????????????????? | | ?????????????????????????????????????????????????? | | ????????????????????????? ?????????????????????? | | ????????????????????????? #????????????????????? | | ????????????????????????? #####????????????????? | | ????????????????????????? #????????????????? | | ?????????????????????????w u #????????????????? | | ????????????????????????? #????????????????? | | ????????????????????????? #????????????????? | | ????????????????????????# a #????????????????? | | ????????????????????????# ###??????????????? | | ????????????????????????#h ???????????????? | | ????????????????????????# a#????????????????? | | ????????????????????????# #????????????????? | | ????????????????????????# #????????????????? | | ????????????????????????# #????????????????? | | ????????????????????????#r #????????????????? | | ?########################@ #T####???????????? | | ? ^ a ????????? | | ? ^ % % o ????????? | | ?? " % k % ????????? | | ?????# T^ ###### r """ """ #?????????? | | ?????# " """ %#????# """ """?????????????? | | ?????# """ #????# k """ ""??????????????? | | ?????# """ #????T ??????????????? | | ?????+ #???## ? ??????????????? | | ?????# #????# ???????????????? | | ?????# ! #????# ### ??????????????? | | ?????###+####### #????# #??# ??????????????? | | ?????????? ???# #????# #??? ??????????????? | | ?????????? ????# #????# #???? ??????????????? | | ????????"" ????# #????# #???? ???????????????? | | ????????"" ????# #????# #????? ????????????????? | | ????????"" ????# #????# #??????????????????????? | | ???????? ????# #????? ???????????????????????? | | ????#####+##??##+#####???????????????????????????? | | ????# #??# #???????????????????????????? | | ????#""" #??# #???????????????????????????? | | #####""" #??# #???????????????????????????? | | ##""" #??# #???????????????????????????? | | " ## #??# #????#??????????????????????? | | " ## = #??# #?? ##?????????????????????? | +----------------------------------------------------+ Best States ------------- Heat Dissipation 55 Energy Generation 14 Energy Capacity 265 Matter Stores 300 Matter Capacity 300 Sight Range 16 Terrain Scan Density 10 Armor Coverage 150 Evasion (%) 55 Recoil Reduction 3 Item Schematics ----------------- None Robot Schematics ------------------ None Fabricated ------------ Nothing Repaired ---------- Grenade Launcher | 28% | -9/Materials Lgt. Armor Plating | 34% | -9/Materials Studied --------- None Alien Tech Used ----------------- None Achievements -------------- None Challenges ------------ None Game ------ Seed LinearPortableBasin Manual? 0 Play Time 00:11:40 Cumulative 43.2 hours Start 2026.06.30 @ 20:04:33 End 2026.06.30 @ 20:14:16 Sessions 1 Manual Loads 0 Difficulty Rogue Special Mode None Game No. 48 Rogue 48 Adventurer 0 Explorer 0 Win Type - Total 0 Types 0/0/0/0/0/0/0/0/0/0 Lore% 51 Gallery% 33 Achievement% 30 Wizard Run 0 Options --------- Layout 1 ASCII 0 Keyboard 0 Movement Numpad Keybinds 0 Fullscreen 1 Font 24/X11 Map View 50x35 Zoom Use 0% Tactical HUD 0 Map Filters NONE Filters NONE Steam 1 RUN: 9d8cc835-f1b1-418c-beb7-e3174f0998be